Workbook

Sheet ONGELMAN TIEDOT JA KAAVIO
B1: ONGELMA-ANALYYSI – PARETO
B2: Tässä solussa on Pareto-kaavio, jossa on kumulatiivinen prosenttiosuus kaikkien ongelma-alueiden esiintymien määrästä.
B4: ONGELMAN TIEDOT
B6: ONGELMAN ALUE | C6: ESIINTYMÄT | D6: PROSENTTIOSUUS KOKONAISMÄÄRÄSTÄ | E6: KUMULATIIVINEN PROSENTTIOSUUS
B7: Vaihteisto | C7: 35 | D7: =IFERROR(Tiedot[[#This Row],[ESIINTYMÄT]]/SUM(Tiedot[ESIINTYMÄT]), "") -> 23.18% | E7: =IFERROR(SUM(INDEX(Tiedot[ESIINTYMÄT],1):Tiedot[[#This Row],[ESIINTYMÄT]])/SUM(Tiedot[ESIINTYMÄT]), "") -> 23.18%
B8: Polttoainejärjestelmä | C8: 25 | D8: =IFERROR(Tiedot[[#This Row],[ESIINTYMÄT]]/SUM(Tiedot[ESIINTYMÄT]), "") -> 16.56% | E8: =IFERROR(SUM(INDEX(Tiedot[ESIINTYMÄT],1):Tiedot[[#This Row],[ESIINTYMÄT]])/SUM(Tiedot[ESIINTYMÄT]), "") -> 39.74%
B9: Sekalaiset | C9: 21 | D9: =IFERROR(Tiedot[[#This Row],[ESIINTYMÄT]]/SUM(Tiedot[ESIINTYMÄT]), "") -> 13.91% | E9: =IFERROR(SUM(INDEX(Tiedot[ESIINTYMÄT],1):Tiedot[[#This Row],[ESIINTYMÄT]])/SUM(Tiedot[ESIINTYMÄT]), "") -> 53.64%
B10: Meluisa | C10: 18 | D10: =IFERROR(Tiedot[[#This Row],[ESIINTYMÄT]]/SUM(Tiedot[ESIINTYMÄT]), "") -> 11.92% | E10: =IFERROR(SUM(INDEX(Tiedot[ESIINTYMÄT],1):Tiedot[[#This Row],[ESIINTYMÄT]])/SUM(Tiedot[ESIINTYMÄT]), "") -> 65.56%
B11: Kuljettajan ohjaimet | C11: 13 | D11: =IFERROR(Tiedot[[#This Row],[ESIINTYMÄT]]/SUM(Tiedot[ESIINTYMÄT]), "") -> 8.61% | E11: =IFERROR(SUM(INDEX(Tiedot[ESIINTYMÄT],1):Tiedot[[#This Row],[ESIINTYMÄT]])/SUM(Tiedot[ESIINTYMÄT]), "") -> 74.17%
B12: Muu sähkövika | C12: 12 | D12: =IFERROR(Tiedot[[#This Row],[ESIINTYMÄT]]/SUM(Tiedot[ESIINTYMÄT]), "") -> 7.95% | E12: =IFERROR(SUM(INDEX(Tiedot[ESIINTYMÄT],1):Tiedot[[#This Row],[ESIINTYMÄT]])/SUM(Tiedot[ESIINTYMÄT]), "") -> 82.12%
B13: Sytytys | C13: 10 | D13: =IFERROR(Tiedot[[#This Row],[ESIINTYMÄT]]/SUM(Tiedot[ESIINTYMÄT]), "") -> 6.62% | E13: =IFERROR(SUM(INDEX(Tiedot[ESIINTYMÄT],1):Tiedot[[#This Row],[ESIINTYMÄT]])/SUM(Tiedot[ESIINTYMÄT]), "") -> 88.74%
B14: Jäähdytysjärjestelmä | C14: 7 | D14: =IFERROR(Tiedot[[#This Row],[ESIINTYMÄT]]/SUM(Tiedot[ESIINTYMÄT]), "") -> 4.64% | E14: =IFERROR(SUM(INDEX(Tiedot[ESIINTYMÄT],1):Tiedot[[#This Row],[ESIINTYMÄT]])/SUM(Tiedot[ESIINTYMÄT]), "") -> 93.38%
B15: Jarrutus | C15: 5 | D15: =IFERROR(Tiedot[[#This Row],[ESIINTYMÄT]]/SUM(Tiedot[ESIINTYMÄT]), "") -> 3.31% | E15: =IFERROR(SUM(INDEX(Tiedot[ESIINTYMÄT],1):Tiedot[[#This Row],[ESIINTYMÄT]])/SUM(Tiedot[ESIINTYMÄT]), "") -> 96.69%
B16: Päästöt | C16: 3 | D16: =IFERROR(Tiedot[[#This Row],[ESIINTYMÄT]]/SUM(Tiedot[ESIINTYMÄT]), "") -> 1.99% | E16: =IFERROR(SUM(INDEX(Tiedot[ESIINTYMÄT],1):Tiedot[[#This Row],[ESIINTYMÄT]])/SUM(Tiedot[ESIINTYMÄT]), "") -> 98.68%
B17: Ohjaus | C17: 2 | D17: =IFERROR(Tiedot[[#This Row],[ESIINTYMÄT]]/SUM(Tiedot[ESIINTYMÄT]), "") -> 1.32% | E17: =IFERROR(SUM(INDEX(Tiedot[ESIINTYMÄT],1):Tiedot[[#This Row],[ESIINTYMÄT]])/SUM(Tiedot[ESIINTYMÄT]), "") -> 100.00%
